bitfinex/quotes_SOLUSD_20251030
["timestamp","ask_amount","ask_price","bid_price","bid_amount"]
[1761840091236,0.28432314,184.63,184.55,25.23679503]
[1761840091385,5.60174492,184.63,184.58,5.60174492]
[1761840091585,11.34,184.62,184.58,5.60174492]
[1761840091813,5.60174492,184.64,184.59,6.27174492]
[1761840092033,11.34,184.63,184.59,6.27174492]
[1761840092223,5.60174492,184.62,184.6,0.67]
[1761840092606,16.94174492,184.63,184.6,6.08689414]
[1761840092816,2.82982246,184.68,184.6,6.08689414]
[1761840092817,2.82982246,184.68,184.61,5.60174492]
[1761840093017,16.94174492,184.68,184.63,26.19374492]
[1761840093219,11.34,184.68,184.64,0.67]
[1761840093519,5.60174492,184.7,184.64,6.27174492]
[1761840093729,5.60174492,184.72,184.64,0.67]
[1761840093928,16.94174492,184.71,184.65,26.86374492]
[1761840094126,16.94174492,184.71,184.66,5.60174492]
[1761840094442,5.60174492,184.73,184.7,20.592]
[1761840094644,11.34,184.72,184.69,5.41447831]
[1761840094938,5.60174492,184.7,184.69,6.08447831]
[1761840095123,16.94174492,184.71,184.69,0.67]
[1761840095526,5.60174492,184.7,184.66,0.67]
[1761840095836,5.60174492,184.67,184.62,0.67]
[1761840096040,0.28432314,184.65,184.57,0.67]
[1761840096237,5.60174492,184.61,184.58,0.67]
[1761840096939,11.36,184.62,184.58,6.08755023]
[1761840097131,5.70002671,184.65,184.58,6.08755023]
[1761840097132,11.34,184.67,184.61,20.592]
[1761840097327,11.34,184.67,184.62,0.67]
[1761840097646,11.34,184.68,184.63,5.60174492]
[1761840097832,9.78882769,184.74,184.65,5.60174492]
[1761840098033,5.60174492,184.71,184.65,5.60174492]
[1761840098240,5.60174492,184.69,184.66,0.67]
[1761840098417,5.60174492,184.68,184.63,0.67]
[1761840098615,5.60174492,184.67,184.64,20.592]
[1761840098815,5.60174492,184.66,184.64,26.00786863]
[1761840099018,5.60174492,184.65,184.62,26.67853125]
[1761840099218,5.60174492,184.65,184.62,26.00853125]
[1761840099425,5.60174492,184.65,184.63,0.67]
[1761840099821,5.60174492,184.64,184.62,5.41653125]
[1761840100227,11.36,184.65,184.62,19.62785938]
[1761840100429,5.60174492,184.69,184.63,6.27174492]
[1761840100835,5.60174492,184.69,184.64,0.67]
[1761840101133,5.60174492,184.68,184.65,5.41565123]
[1761840101335,5.60174492,184.66,184.65,5.41565123]
[1761840101839,5.60174492,184.67,184.65,6.08565123]
[1761840102031,5.60174492,184.68,184.65,5.41565123]
[1761840102221,11.34,184.7,184.65,5.41565123]
[1761840102222,5.60174492,184.66,184.65,0.67]
[1761840102422,5.60174492,184.66,184.64,5.4159263]
[1761840102623,5.60174492,184.67,184.65,0.67]
[1761840103046,11.34,184.7,184.65,6.08546698]
[1761840103047,5.60174492,184.66,184.65,6.08546698]
[1761840103241,5.60174492,184.66,184.62,6.08653125]
[1761840103437,5.60174492,184.63,184.61,20.592]
[1761840103928,5.60174492,184.68,184.62,6.27174492]
[1761840104129,5.60174492,184.71,184.66,5.60174492]
[1761840104350,5.60174492,184.71,184.63,21.262]
[1761840104351,11.34,184.72,184.65,5.60174492]
[1761840104653,5.60174492,184.71,184.66,5.60174492]
[1761840104850,34.12241527,184.77,184.64,0.67]
[1761840104851,13.52601104,184.83,184.68,5.60174492]
[1761840105149,5.60174492,184.75,184.7,39.54164807]
[1761840105326,5.60174492,184.74,184.7,39.54164807]
[1761840105660,11.36,184.77,184.7,5.41418516]
[1761840105661,5.60174492,184.72,184.7,5.41418516]
[1761840105953,5.60174492,184.71,184.68,20.592]
[1761840106160,11.36,184.73,184.66,0.67]
[1761840106161,5.60174492,184.69,184.66,0.67]
[1761840106328,5.60174492,184.69,184.65,5.41565123]
[1761840106332,0.69,184.72,184.65,18.95477931]
[1761840106530,11.64432314,184.73,184.65,18.95477931]
[1761840106531,11.36,184.73,184.66,0.67]
[1761840106848,5.60174492,184.72,184.66,6.27174492]
[1761840107046,5.60174492,184.7,184.67,0.67]
[1761840107251,5.60174492,184.7,184.68,5.41477149]
[1761840107562,11.36,184.73,184.68,5.41477149]
[1761840107744,5.60174492,184.72,184.69,0.67]
[1761840108130,5.60174492,184.73,184.69,0.67]
[1761840108335,22.04555242,184.9,184.71,20.592]
[1761840108336,5.60174492,184.76,184.71,20.592]
[1761840108563,16.96174492,184.75,184.71,20.592]
[1761840108766,5.60174492,184.74,184.71,20.592]
[1761840109266,5.60174492,184.74,184.72,6.08359896]
[1761840109437,5.60174492,184.74,184.62,101.99999999]
[1761840109438,5.60174492,184.73,184.68,0.67]
[1761840109633,5.60174492,184.72,184.7,20.592]
[1761840109859,11.36,184.76,184.7,20.592]
[1761840109860,5.60174492,184.73,184.7,20.592]
[1761840110236,5.60174492,184.73,184.71,0.67]
[1761840110631,5.60174492,184.74,184.71,0.67]
[1761840110868,5.60174492,184.73,184.71,0.67]
[1761840111248,5.60174492,184.73,184.72,5.41359896]
[1761840111447,5.60174492,184.73,184.71,0.67]
[1761840111743,5.60174492,184.73,184.68,5.60174492]
[1761840111744,5.60174492,184.72,184.69,5.41441233]
[1761840111942,5.60174492,184.72,184.7,0.67]
[1761840112148,5.60174492,184.74,184.7,0.67]
[1761840112348,5.60174492,184.73,184.7,0.67]
[1761840112759,5.60174492,184.71,184.69,5.41441233]
[1761840113062,5.60174492,184.7,184.69,5.41441233]
[1761840113449,5.60174492,184.7,184.68,5.41477149]
[1761840113645,0.97432314,184.74,184.68,6.08477149]
[1761840113956,5.60174492,184.7,184.68,6.08477149]
[1761840114154,5.60174492,184.69,184.68,6.08477149]
[1761840114457,5.60174492,184.69,184.68,5.41477149]
[1761840114966,0.28432314,184.68,184.59,5.41741156]
[1761840115268,0.28432314,184.68,184.58,0.67]
[1761840115269,5.60174492,184.6,184.58,0.67]
[1761840115587,0.28432314,184.65,184.52,22.83402204]
[1761840115588,5.60174492,184.59,184.52,23.50402204]
[1761840115736,0.28432314,184.62,184.52,23.50402204]
[1761840115737,5.60174492,184.54,184.52,23.50402204]
[1761840115936,5.60174492,184.56,184.53,18.96710561]
[1761840116147,11.36,184.58,184.53,18.96710561]
[1761840116148,5.60174492,184.57,184.53,19.63710561]
[1761840116445,5.60174492,184.57,184.54,0.67]
[1761840116638,11.36,184.59,184.54,0.67]
[1761840116838,5.60174492,184.57,184.54,0.67]
[1761840117462,5.60174492,184.57,184.55,5.41858574]
[1761840118061,5.60174492,184.57,184.56,0.67]
[1761840118264,5.60174492,184.57,184.53,6.08917303]
[1761840118466,5.60174492,184.55,184.53,6.08917303]
[1761840118656,5.60174492,184.54,184.52,22.83402204]
[1761840118840,0.97432314,184.58,184.52,22.83402204]
[1761840119046,5.60174492,184.54,184.52,22.83402204]
[1761840119445,5.60174492,184.58,184.54,5.41887937]
[1761840119652,5.60174492,184.58,184.54,18.9660778]
[1761840119968,6.39064021,184.63,184.52,28.92345993]
[1761840119969,5.60174492,184.55,184.52,28.92345993]
[1761840120166,0.28432314,184.59,184.52,28.92345993]
[1761840120167,5.60174492,184.54,184.52,28.92345993]
[1761840120367,11.36,184.56,184.52,28.25348757]
[1761840120671,16.96174492,184.56,184.53,0.67]
[1761840121136,5.60174492,184.58,184.53,0.67]
[1761840121341,5.60174492,184.58,184.53,21.262]
[1761840121563,5.60174492,184.59,184.54,18.9660778]
[1761840121768,5.41629176,184.63,184.54,19.6360778]
[1761840121769,5.60174492,184.58,184.54,19.6360778]
[1761840121944,5.60174492,184.55,184.52,22.83402204]
[1761840122144,0.28432314,184.59,184.52,28.25340949]
[1761840122357,5.60174492,184.54,184.52,28.25340949]
[1761840122568,1.99999999,184.68,184.53,0.67]
[1761840122569,0.69,184.63,184.53,0.67]
[1761840122851,5.60174492,184.54,184.52,22.83402204]
[1761840123162,5.60174492,184.53,184.52,22.83402204]
[1761840123373,5.88606806,184.53,184.52,22.83402204]
[1761840123547,15.49232386,184.53,184.52,21.57402204]
[1761840123875,0.28432314,184.52,184.47,0.1]
[1761840124075,5.41884971,184.55,184.48,0.67]
[1761840124390,20.83383156,184.58,184.48,0.67]
[1761840124391,0.28432314,184.54,184.48,0.67]
[1761840124550,5.60174492,184.55,184.5,20.592]
[1761840124755,11.46,184.58,184.52,5.60174492]
[1761840124967,11.42,184.65,184.55,20.592]
[1761840124968,5.60174492,184.59,184.55,20.592]
[1761840125373,5.60174492,184.56,184.53,0.67]
[1761840125649,0.28432314,184.53,184.47,5.52089842]
[1761840125857,5.60174492,184.49,184.48,0.67]
[1761840126069,5.60174492,184.49,184.47,5.52089842]
[1761840126264,5.88606806,184.48,184.47,0.1]
[1761840126488,11.78432314,184.51,184.47,0.1]
[1761840126779,5.60174492,184.48,184.47,5.52093565]
[1761840127081,5.60174492,184.48,184.47,0.1]
[1761840127778,11.30670986,184.48,184.47,0.1]
[1761840127979,0.28432314,184.48,184.47,0.1]
[1761840128210,17.10174492,184.48,184.47,0.1]
[1761840128480,17.38606806,184.48,184.47,0.1]
[1761840129050,5.88606806,184.48,184.47,0.1]
[1761840129276,17.42606806,184.48,184.47,0.1]
[1761840129497,27.21489575,184.48,184.47,0.1]
[1761840129899,17.42606806,184.48,184.47,0.1]
[1761840130606,27.21489575,184.48,184.47,0.1]
[1761840130809,11.82432314,184.48,184.47,0.1]
[1761840131016,17.42606806,184.48,184.47,0.1]
[1761840131509,32.63553755,184.48,184.47,0.1]
[1761840131900,27.21489575,184.48,184.47,0.1]
[1761840132094,17.42606806,184.48,184.47,0.1]
[1761840132297,5.60174492,184.48,184.47,0.81]
[1761840132484,11.52,184.5,184.47,6.23093565]
[1761840132683,17.12174492,184.5,184.47,6.23093565]
[1761840132892,17.12174492,184.5,184.48,0.71]
[1761840133300,5.60174492,184.49,184.48,0.71]
[1761840133823,5.60174492,184.49,184.47,5.52093565]
[1761840133824,9.78882769,184.57,184.5,20.592]
[1761840134126,5.60174492,184.57,184.52,5.60174492]
[1761840134303,5.60174492,184.57,184.51,0.71]
[1761840134618,5.60174492,184.56,184.51,6.31174492]
[1761840134821,5.60174492,184.56,184.51,0.71]
[1761840134996,9.78882769,184.63,184.52,25.27987845]
[1761840135197,5.60174492,184.58,184.52,6.12946672]
[1761840135380,5.60174492,184.58,184.5,20.592]
[1761840135381,17.12174492,184.58,184.5,20.592]
[1761840135585,5.60174492,184.51,184.48,21.292]
[1761840135802,0.28432314,184.54,184.47,0.1]
[1761840135803,5.60174492,184.49,184.47,0.1]
[1761840136005,17.42606806,184.48,184.47,0.1]
[1761840136409,17.14174492,184.48,184.47,0.1]
[1761840136595,17.14174492,184.48,184.47,0.8]
[1761840136917,17.16174492,184.49,184.47,0.8]
[1761840137124,17.16174492,184.49,184.47,6.22087179]
[1761840137125,11.56,184.49,184.47,6.22087179]
[1761840137425,11.56,184.53,184.48,5.60174492]
[1761840137628,17.16174492,184.53,184.48,6.30174492]
[1761840137790,11.56,184.53,184.49,6.30174492]
[1761840137988,17.16174492,184.53,184.5,0.7]
[1761840138194,17.16174492,184.53,184.5,21.292]
[1761840138495,11.56,184.53,184.5,21.292]
[1761840138821,17.16174492,184.53,184.51,0.7]
[1761840139017,5.60174492,184.56,184.5,5.60174492]
[1761840139221,5.60174492,184.56,184.51,5.60174492]
[1761840139588,8.51579193,184.56,184.51,8.51579193]
[1761840139788,8.51579193,184.53,184.47,8.51579193]
[1761840139995,8.51579193,184.52,184.46,8.51579193]
[1761840140218,8.51579193,184.52,184.47,8.51579193]
[1761840140418,11.54,184.53,184.48,8.51579193]
[1761840140792,11.54,184.53,184.49,8.51579193]
[1761840140989,20.05579193,184.53,184.48,5.4206418]
[1761840141294,20.05579193,184.53,184.49,0.7]
[1761840142010,11.54,184.53,184.49,0.7]
[1761840142310,20.05579193,184.53,184.49,0.7]
[1761840142493,8.51579193,184.5,184.48,68.2206418]
[1761840142696,11.54,184.49,184.47,5.42087537]
[1761840145318,11.56,184.58,184.56,5.41829215]
[1761840145686,20.07579193,184.58,184.55,5.41852642]
[1761840145891,8.51579193,184.57,184.55,5.41852642]
[1761840146134,11.56,184.58,184.55,5.41852642]
[1761840146135,20.07579193,184.58,184.55,5.41852642]
[1761840146491,20.07579193,184.58,184.53,0.7]
[1761840146492,11.56,184.58,184.53,0.7]
[1761840146718,20.07579193,184.58,184.53,19.66700708]
[1761840146914,8.51579193,184.57,184.53,18.96700708]
[1761840147125,8.51579193,184.57,184.52,5.41946672]
[1761840147389,8.51579193,184.54,184.51,20.592]
[1761840147589,8.51579193,184.54,184.45,9.78882769]
[1761840147590,8.51579193,184.52,184.47,0.7]
[1761840147789,11.54,184.51,184.48,5.4206418]
[1761840148020,11.54,184.51,184.48,18.9722463]
[1761840148230,11.54,184.51,184.48,19.6722463]
[1761840148460,20.05579193,184.51,184.48,82.4722463]
[1761840148633,20.05579193,184.51,184.48,18.9722463]
[1761840148962,11.54,184.51,184.48,13.5516045]
[1761840149138,11.54,184.51,184.48,14.2516045]
[1761840149333,20.05579193,184.51,184.48,20.592]
[1761840149539,11.54,184.51,184.48,20.592]
[1761840149735,11.54,184.51,184.45,9.21579193]
[1761840149736,8.51579193,184.5,184.45,9.21579193]
[1761840149924,8.51579193,184.5,184.45,14.63714505]
[1761840150124,11.54,184.51,184.46,0.7]
[1761840150351,20.05579193,184.51,184.46,0.7]
[1761840151159,8.51579193,184.58,184.53,20.592]
[1761840151450,11.52,184.58,184.54,0.7]
[1761840151660,8.51579193,184.59,184.54,0.7]
[1761840151824,11.52,184.58,184.54,0.7]
[1761840152148,20.03579193,184.58,184.54,0.7]
[1761840152374,11.52,184.58,184.55,13.93437767]
[1761840152530,20.03579193,184.6,184.55,27.48084204]
[1761840152730,11.52,184.59,184.56,0.7]
[1761840153029,11.52,184.59,184.54,8.51579193]
[1761840153030,20.03579193,184.59,184.54,8.51579193]
[1761840153238,8.51579193,184.56,184.54,20.592]
[1761840153454,20.03579193,184.55,184.5,9.21579193]
[1761840153752,0.28432314,184.61,184.5,9.21579193]
[1761840153753,11.52,184.54,184.51,20.592]
[1761840154051,11.52,184.54,184.51,21.292]
[1761840154252,11.52,184.54,184.53,5.41917303]
[1761840155165,11.52,184.54,184.53,6.11917303]
[1761840156227,11.52,184.54,184.51,42.65691546]
[1761840156228,11.52,184.54,184.52,5.41946672]
[1761840156434,11.52,184.54,184.5,5.4200542]
[1761840156435,8.51579193,184.53,184.5,5.4200542]
[1761840156650,11.52,184.54,184.46,14.25239097]
[1761840156651,8.51579193,184.51,184.46,14.25239097]
[1761840156940,8.51579193,184.5,184.47,18.97327478]
[1761840157138,20.01579193,184.51,184.48,0.7]
[1761840157334,30.38082769,184.61,184.48,0.7]
[1761840157548,8.51579193,184.54,184.48,72.01579193]
[1761840157741,11.5,184.53,184.51,20.592]
[1761840158252,11.5,184.53,184.52,5.41946672]
[1761840158568,20.01579193,184.53,184.51,5.41974508]
[1761840159045,8.51579193,184.52,184.51,5.41974508]
[1761840159358,8.51579193,184.52,184.48,26.01257354]
[1761840159534,8.51579193,184.5,184.48,26.01257354]
[1761840159740,17.60929511,184.53,184.46,5.42094089]
[1761840159741,20.03579193,184.49,184.46,5.42094089]
[1761840159933,11.52,184.48,184.46,5.42094089]
[1761840160136,11.52,184.48,184.46,6.13094089]
[1761840160464,20.03579193,184.48,184.46,0.71]
[1761840160761,8.51579193,184.48,184.45,5.42146392]
[1761840161061,11.52,184.47,184.45,5.42146392]
[1761840161264,11.52,184.47,184.46,0.71]
[1761840161443,11.52,184.47,184.45,5.42146392]
[1761840161766,8.51579193,184.46,184.43,5.42188271]
[1761840161938,8.51579193,184.45,184.43,5.42188271]
[1761840162142,11.52,184.47,184.43,6.13188271]
[1761840162366,11.52,184.44,184.43,6.13188271]
[1761840162540,11.52,184.44,184.43,5.42188271]
[1761840163051,11.52,184.44,184.43,6.13188271]
[1761840163464,11.52,184.44,184.43,5.42188271]
[1761840164883,20.03579193,184.44,184.4,5.42299349]
[1761840165178,8.51579193,184.41,184.39,5.52323204]
[1761840165486,11.5,184.4,184.39,0.1]
[1761840165857,11.5,184.4,184.39,6.23328759]
[1761840166266,11.5,184.4,184.39,5.52328759]
[1761840168458,20.01579193,184.4,184.39,0.1]
[1761840169054,26.41310856,184.4,184.35,0.05]
[1761840169254,8.80011507,184.36,184.35,0.05]
[1761840169479,20.30011507,184.36,184.35,0.05]
[1761840169684,20.90011507,184.36,184.35,0.05]
[1761840170183,30.68894276,184.36,184.35,0.05]
[1761840170493,30.68894276,184.36,184.27,22.31961241]
[1761840170494,20.592,184.28,184.27,8.70320483]
[1761840170659,34.60446511,184.28,184.27,7.91900483]
[1761840170984,27.76744068,184.28,184.27,7.91900483]
[1761840171164,20.13579193,184.28,184.27,7.91900483]
[1761840171479,20.2779535,184.28,184.27,7.91900483]
[1761840171684,20.13579193,184.28,184.27,7.91900483]
[1761840171871,8.51579193,184.28,184.27,7.91900483]
[1761840172181,20.15579193,184.28,184.27,7.91900483]
[1761840172362,8.51579193,184.28,184.27,7.91900483]
[1761840172687,11.64,184.28,184.27,14.05582417]
[1761840172885,11.64,184.28,184.27,27.62287252]
[1761840173383,11.64,184.28,184.24,0.1]
[1761840173384,8.51579193,184.28,184.24,0.1]
[1761840173688,11.74,184.27,184.25,0.71]
[1761840173886,11.74,184.26,184.25,0.71]
[1761840174271,20.25579193,184.26,184.24,0.1]
[1761840174985,8.6579535,184.25,184.24,0.1]
[1761840175286,18.44678119,184.25,184.24,0.1]
[1761840175685,18.44678119,184.25,184.13,5.43084089]
[1761840175870,8.51579193,184.17,184.13,6.14084089]
[1761840176070,20.25579193,184.18,184.14,0.71]
[1761840176388,11.74,184.19,184.14,0.71]
[1761840176764,11.74,184.19,184.15,5.43035568]
[1761840177069,20.25579193,184.19,184.15,5.43035568]
[1761840177258,8.51579193,184.17,184.15,6.14035568]
[1761840177463,11.74,184.16,184.15,6.14035568]
[1761840177802,11.74,184.16,184.11,20.592]
[1761840177960,11.74,184.16,184.15,0.71]
[1761840178664,11.74,184.16,184.09,5.43212559]
[1761840178880,8.51579193,184.15,184.1,13.57957631]
[1761840179080,8.51579193,184.15,184.1,14.28957631]
[1761840179290,8.51579193,184.14,184.11,0.71]
[1761840179472,8.51579193,184.12,184.08,5.53239175]
[1761840179783,11.74,184.13,184.08,5.53239175]
[1761840179962,11.74,184.13,184.09,0.71]
[1761840180384,20.25579193,184.13,184.09,0.71]
[1761840180583,11.76,184.13,184.09,0.71]
[1761840180770,11.76,184.13,184.1,19.01140683]
[1761840181079,8.51579193,184.34,184.15,20.592]
[1761840181270,8.51579193,184.26,184.15,20.592]
[1761840181475,8.51579193,184.26,184.2,8.51579193]
[1761840181663,8.51579193,184.26,184.16,0.71]
[1761840181664,11.78,184.26,184.21,8.51579193]
[1761840181990,11.78,184.26,184.2,20.592]
[1761840182197,2.83512376,184.34,184.25,8.51579193]
[1761840182494,8.51579193,184.32,184.25,8.51579193]
[1761840182674,11.78,184.33,184.27,8.51579193]
[1761840182876,41.05579193,184.36,184.29,27.50759831]
[1761840183063,8.51579193,184.34,184.3,0.71]
[1761840183265,8.51579193,184.31,184.22,0.71]
[1761840183480,8.51579193,184.28,184.23,0.71]
[1761840183678,11.78,184.27,184.23,21.302]
[1761840183900,20.29579193,184.27,184.23,21.302]
[1761840184096,11.78,184.27,184.24,0.71]
[1761840184387,11.78,184.27,184.24,9.22579193]
[1761840184589,11.78,184.27,184.25,0.71]
[1761840184786,0.14216157,184.34,184.26,5.42711386]
[1761840184787,8.51579193,184.3,184.26,5.42711386]
[1761840184993,20.29579193,184.29,184.25,6.13738335]
[1761840185166,8.51579193,184.27,184.22,0.71]
[1761840185372,8.51579193,184.26,184.22,0.71]
[1761840185671,11.78,184.25,184.22,0.71]
[1761840185882,11.78,184.25,184.2,5.42885476]
[1761840185883,20.29579193,184.24,184.2,19.00105888]
[1761840186086,11.78,184.23,184.21,0.71]
[1761840186286,8.51579193,184.24,184.21,0.71]
[1761840186494,8.51579193,184.23,184.2,5.42885476]
[1761840186676,8.51579193,184.23,184.2,6.13885476]
[1761840187007,8.51579193,184.31,184.22,8.51579193]
[1761840187184,8.51579193,184.3,184.24,8.51579193]
[1761840187388,8.51579193,184.28,184.23,21.302]
[1761840187677,8.51579193,184.28,184.24,0.71]
[1761840187875,8.51579193,184.29,184.24,0.71]
[1761840188098,11.78,184.31,184.24,9.22579193]
[1761840188099,8.51579193,184.3,184.24,9.22579193]
[1761840188478,11.78,184.31,184.25,19.70592944]
[1761840188678,12.93456006,184.47,184.28,8.51579193]
[1761840188679,8.51579193,184.34,184.28,8.51579193]
[1761840188885,11.78,184.33,184.26,0.71]
[1761840189103,11.78,184.33,184.28,8.51579193]
[1761840189306,13.55626284,184.42,184.32,8.51579193]
[1761840189485,11.8,184.39,184.33,9.23579193]
[1761840189805,11.8,184.39,184.34,0.72]
[1761840190301,11.8,184.39,184.24,1.99999999]
[1761840190302,20.592,184.32,184.22,0.72]
[1761840190607,8.51579193,184.27,184.22,6.14824826]
[1761840190801,8.51579193,184.25,184.22,6.14824826]
[1761840191105,8.51579193,184.29,184.23,0.72]
[1761840191305,8.51579193,184.28,184.23,0.72]
[1761840191801,8.51579193,184.25,184.23,0.72]
[1761840192004,8.51579193,184.27,184.23,0.72]
[1761840192175,11.9,184.28,184.23,0.72]
[1761840192176,2.83375785,184.43,184.24,9.78882769]
[1761840192384,2.83375785,184.43,184.34,20.592]
[1761840192681,9.96,184.48,184.35,29.82779193]
[1761840192894,8.51579193,184.44,184.37,8.51579193]
[1761840193097,8.51579193,184.44,184.36,0.72]
[1761840193274,8.51579193,184.44,184.36,22.42882769]
[1761840193706,8.51579193,184.44,184.37,0.72]
[1761840194376,8.51579193,184.44,184.38,5.42358173]
[1761840194583,8.51579193,184.47,184.37,21.312]
[1761840194804,8.51579193,184.42,184.38,0.72]
[1761840195408,8.51579193,184.43,184.38,0.72]
[1761840195706,8.51579193,184.44,184.38,0.72]
[1761840195898,8.51579193,184.47,184.4,8.51579193]
[1761840196280,8.51579193,184.47,184.41,0.7]
[1761840196609,8.51579193,184.47,184.42,18.97841881]
[1761840196780,8.51579193,184.51,184.44,8.51579193]
[1761840196981,8.51579193,184.53,184.46,8.51579193]
[1761840197193,8.51579193,184.51,184.44,0.7]
[1761840197413,8.51579193,184.5,184.44,0.7]
[1761840197711,8.51579193,184.51,184.44,9.21579193]
[1761840198088,11.9,184.54,184.45,0.7]
[1761840198089,8.51579193,184.5,184.45,0.7]
[1761840198291,11.9,184.54,184.45,0.7]
[1761840198489,8.51579193,184.46,184.42,19.67841881]
[1761840198693,8.51579193,184.51,184.44,8.51579193]
[1761840198896,2.83168051,184.56,184.5,8.51579193]
[1761840199098,8.51579193,184.58,184.5,8.51579193]
[1761840199298,8.51579193,184.59,184.53,8.51579193]
[1761840199495,8.51579193,184.59,184.51,0.7]
[1761840199805,8.51579193,184.56,184.51,0.7]
[1761840200108,8.51579193,184.54,184.51,0.7]
[1761840200705,5.41711809,184.6,184.51,6.11963241]
[1761840200889,8.51579193,184.54,184.51,0.7]
[1761840201213,8.51579193,184.53,184.51,0.7]
[1761840201404,8.51579193,184.53,184.48,6.1206418]
[1761840201405,5.60595399,184.53,184.48,6.1206418]
[1761840201605,5.60595399,184.52,184.48,0.7]
[1761840202118,5.60595399,184.53,184.48,0.7]
[1761840202293,5.60595399,184.53,184.49,5.42034798]
[1761840202490,17.35830888,184.56,184.5,0.7]
[1761840202691,5.60595399,184.53,184.5,0.7]
[1761840203191,5.60595399,184.52,184.47,0.7]
[1761840203390,5.60595399,184.5,184.47,0.7]
[1761840203592,5.60595399,184.51,184.47,0.7]
[1761840203815,0.14216157,184.59,184.49,5.60595399]
[1761840204122,11.92,184.57,184.52,5.60595399]
[1761840204429,17.52595399,184.57,184.53,5.41917303]
[1761840204595,17.52595399,184.57,184.53,0.7]
[1761840204918,17.52595399,184.57,184.54,0.7]
[1761840205217,2.83080017,184.61,184.54,6.30595399]
[1761840205512,5.80595399,184.63,184.57,5.60595399]
[1761840205814,0.2,184.63,184.58,5.60595399]
[1761840206005,5.80595399,184.63,184.57,5.60595399]
[1761840206215,5.60595399,184.62,184.57,5.60595399]
[1761840206517,5.60595399,184.62,184.58,0.7]
[1761840206688,5.60595399,184.59,184.55,0.7]
[1761840207010,5.61638763,184.63,184.51,0.7]
[1761840207011,5.60595399,184.56,184.51,0.7]
[1761840207214,5.60595399,184.55,184.52,0.7]
[1761840207599,11.9,184.6,184.52,0.7]
[1761840207600,5.60595399,184.56,184.52,0.7]
[1761840207902,5.60595399,184.54,184.52,0.7]
[1761840208423,5.60595399,184.53,184.52,0.7]
[1761840208935,20.592,184.52,184.36,0.7]
[1761840209135,5.60595399,184.47,184.38,0.7]
[1761840209336,12.08,184.46,184.38,0.7]
[1761840209538,5.60595399,184.45,184.38,0.7]
[1761840209900,5.60595399,184.43,184.38,0.7]
[1761840210101,5.60595399,184.39,184.34,0.7]
[1761840210320,17.82811556,184.47,184.34,0.7]
[1761840210321,5.60595399,184.37,184.34,6.12475218]
[1761840210805,5.60595399,184.37,184.35,0.7]
[1761840211219,5.60595399,184.39,184.35,0.7]
[1761840211817,12.1,184.41,184.35,0.7]
[1761840212018,5.60595399,184.4,184.35,0.7]
[1761840212829,5.60595399,184.38,184.36,5.4241701]
[1761840213005,5.60595399,184.38,184.35,0.7]
[1761840213625,5.60595399,184.36,184.31,0.7]
[1761840213824,5.60595399,184.32,184.27,0.7]
[1761840214026,5.60595399,184.36,184.23,16.16153964]
[1761840214027,5.60595399,184.28,184.23,0.7]
[1761840214225,5.60595399,184.26,184.24,0.7]
[1761840214431,5.60595399,184.27,184.25,5.42740841]
[1761840214725,5.60595399,184.28,184.25,5.42740841]
[1761840214918,12.08,184.31,184.25,5.42740841]
[1761840215224,12.08,184.31,184.24,0.7]
[1761840215225,5.60595399,184.26,184.24,0.7]
[1761840215422,5.60595399,184.25,184.21,6.12858693]
[1761840215628,5.60595399,184.24,184.21,6.12858693]
[1761840215813,0.14216157,184.32,184.22,0.7]
[1761840216018,13.5602318,184.37,184.22,0.7]
[1761840216216,13.5602318,184.37,184.24,20.592]
[1761840216217,5.60595399,184.28,184.24,20.592]
[1761840216413,5.60595399,184.29,184.25,5.42740841]
[1761840216713,5.60595399,184.29,184.25,6.12740841]
[1761840216915,17.48507065,184.33,184.26,0.7]
[1761840217230,5.60595399,184.27,184.26,0.7]
[1761840217435,17.48507065,184.33,184.26,0.7]
[1761840217436,12.06,184.33,184.26,0.7]